[Event "Titled Tuesday Blitz November 07 Late 2023"]
[White "Rojas Alarcon, Julian Antonio"]
[Black "Oglaza, Oskar"]
[WhiteFideId "5107407"]
[BlackFideId "1194402"]
[WhiteElo "2669"]
[BlackElo "2445"]
[Result "1/2-1/2"]
[Round "4"]
[TimeControl "180+1"]
[Date "2023.11.07"]
[WhiteClock "0:00:47"]
[BlackClock "0:00:22"]
[Board "82"]

1. e4 {[%clk 0:02:53]}  c5 {[%clk 0:03:00]} 2. Nf3 {[%clk 0:02:51]}  d6 {[%clk 0:03:00]} 3. d4 {[%clk 0:02:51]}  cxd4 {[%clk 0:03:01]} 4. Nxd4 {[%clk 0:02:52]}  Nf6 {[%clk 0:03:00]} 5. Nc3 {[%clk 0:02:52]}  a6 {[%clk 0:03:01]} 6. Qf3 {[%clk 0:02:51]}  Qc7 {[%clk 0:02:56]} 7. h3 {[%clk 0:02:49]}  Nc6 {[%clk 0:02:52]} 8. Be3 {[%clk 0:02:40]}  g6 {[%clk 0:02:50]} 9. g4 {[%clk 0:02:36]}  Bg7 {[%clk 0:02:49]} 10. O-O-O {[%clk 0:02:35]}  Be6 {[%clk 0:02:15]} 11. g5 {[%clk 0:02:33]}  Nd7 {[%clk 0:02:15]} 12. h4 {[%clk 0:02:29]}  Nde5 {[%clk 0:02:12]} 13. Qg3 {[%clk 0:02:21]}  b5 {[%clk 0:01:50]} 14. f4 {[%clk 0:02:10]}  Nc4 {[%clk 0:01:49]} 15. Nxe6 {[%clk 0:02:07]}  fxe6 {[%clk 0:01:46]} 16. Bxc4 {[%clk 0:02:07]}  bxc4 {[%clk 0:01:47]} 17. f5 {[%clk 0:02:08]}  Bxc3 {[%clk 0:01:45]} 18. bxc3 {[%clk 0:02:07]}  Qa5 {[%clk 0:01:45]} 19. Kd2 {[%clk 0:02:05]}  exf5 {[%clk 0:01:40]} 20. exf5 {[%clk 0:02:01]}  Qxf5 {[%clk 0:01:39]} 21. Rhf1 {[%clk 0:02:01]}  Qd5+ {[%clk 0:01:33]} 22. Ke2 {[%clk 0:02:00]}  Qe4 {[%clk 0:01:29]} 23. Rd2 {[%clk 0:01:59]}  Ne5 {[%clk 0:01:23]} 24. Rf4 {[%clk 0:01:57]}  Qh1 {[%clk 0:01:20]} 25. Bd4 {[%clk 0:01:55]}  Rf8 {[%clk 0:01:11]} 26. Bxe5 {[%clk 0:01:48]}  dxe5 {[%clk 0:01:09]} 27. Rxf8+ {[%clk 0:01:47]}  Kxf8 {[%clk 0:01:09]} 28. Qxe5 {[%clk 0:01:40]}  Qg2+ {[%clk 0:01:08]} 29. Ke3 {[%clk 0:01:39]}  Qh3+ {[%clk 0:01:07]} 30. Ke2 {[%clk 0:01:31]}  Qg4+ {[%clk 0:01:03]} 31. Kf1 {[%clk 0:01:26]}  Qh3+ {[%clk 0:00:58]} 32. Kg1 {[%clk 0:01:23]}  Qg4+ {[%clk 0:00:51]} 33. Rg2 {[%clk 0:01:22]}  Qd1+ {[%clk 0:00:51]} 34. Kh2 {[%clk 0:01:22]}  Qd6 {[%clk 0:00:52]} 35. Qg3 {[%clk 0:01:16]}  Rb8 {[%clk 0:00:50]} 36. Rf2+ {[%clk 0:01:16]}  Kg8 {[%clk 0:00:50]} 37. Kh3 {[%clk 0:01:04]}  Qe6+ {[%clk 0:00:44]} 38. Kg2 {[%clk 0:00:59]}  Rd8 {[%clk 0:00:43]} 39. Qf4 {[%clk 0:00:56]}  Qd5+ {[%clk 0:00:41]} 40. Kg1 {[%clk 0:00:55]}  Qe6 {[%clk 0:00:38]} 41. Kh2 {[%clk 0:00:51]}  Qd6 {[%clk 0:00:25]} 42. Kg3 {[%clk 0:00:50]}  Qxf4+ {[%clk 0:00:22]} 43. Rxf4 {[%clk 0:00:51]}  Rd2 {[%clk 0:00:21]} 44. Rxc4 {[%clk 0:00:51]}  Rxc2 {[%clk 0:00:22]} 45. a4 {[%clk 0:00:52]}  Kf7 {[%clk 0:00:21]} 46. Kf4 {[%clk 0:00:52]}  Ke6 {[%clk 0:00:21]} 47. Rc6+ {[%clk 0:00:50]}  Kd5 {[%clk 0:00:21]} 48. Rxa6 {[%clk 0:00:49]}  Rxc3 {[%clk 0:00:21]} 49. Ra8 {[%clk 0:00:49]}  e5+ {[%clk 0:00:21]} 50. Kg4 {[%clk 0:00:47]}  e4 {[%clk 0:00:22]} 51. Ra7 {[%clk 0:00:45]}  e3 {[%clk 0:00:19]} 52. Kf3 {[%clk 0:00:44]}  Rc4 {[%clk 0:00:14]} 53. Rxh7 {[%clk 0:00:43]}  Rxa4 {[%clk 0:00:13]} 54. Kxe3 {[%clk 0:00:43]}  Ke5 {[%clk 0:00:13]} 55. Rh6 {[%clk 0:00:42]}  Ra3+ {[%clk 0:00:13]} 56. Kd2 {[%clk 0:00:41]}  Kf5 {[%clk 0:00:14]} 57. Kc2 {[%clk 0:00:41]}  Rh3 {[%clk 0:00:14]} 58. Kb2 {[%clk 0:00:41]}  Kg4 {[%clk 0:00:12]} 59. Rxg6 {[%clk 0:00:38]}  Rxh4 {[%clk 0:00:12]} 60. Rg8 {[%clk 0:00:39]}  Kf5 {[%clk 0:00:13]} 61. g6 {[%clk 0:00:39]}  Kf6 {[%clk 0:00:13]} 62. g7 {[%clk 0:00:39]}  Kf7 {[%clk 0:00:13]} 63. Rh8 {[%clk 0:00:40]}  Rg4 {[%clk 0:00:14]} 64. g8=Q+ {[%clk 0:00:39]}  Rxg8 {[%clk 0:00:14]} 65. Rh6 {[%clk 0:00:40]}  Rg6 {[%clk 0:00:14]} 66. Rh5 {[%clk 0:00:40]}  Rf6 {[%clk 0:00:15]} 67. Kc3 {[%clk 0:00:40]}  Kg6 {[%clk 0:00:15]} 68. Rh1 {[%clk 0:00:39]}  Kg5 {[%clk 0:00:15]} 69. Kd4 {[%clk 0:00:39]}  Rf4+ {[%clk 0:00:15]} 70. Ke3 {[%clk 0:00:39]}  Rf5 {[%clk 0:00:16]} 71. Rh8 {[%clk 0:00:39]}  Kf6 {[%clk 0:00:16]} 72. Rf8+ {[%clk 0:00:38]}  Ke5 {[%clk 0:00:16]} 73. Re8+ {[%clk 0:00:38]}  Kf6 {[%clk 0:00:16]} 74. Ke4 {[%clk 0:00:39]}  Ra5 {[%clk 0:00:16]} 75. Rf8+ {[%clk 0:00:39]}  Kg5 {[%clk 0:00:17]} 76. Rg8+ {[%clk 0:00:39]}  Kf6 {[%clk 0:00:17]} 77. Rh8 {[%clk 0:00:39]}  Ra4+ {[%clk 0:00:17]} 78. Kd5 {[%clk 0:00:39]}  Ra5+ {[%clk 0:00:17]} 79. Kc6 {[%clk 0:00:40]}  Ra6+ {[%clk 0:00:18]} 80. Kc5 {[%clk 0:00:40]}  Ra5+ {[%clk 0:00:18]} 81. Kb6 {[%clk 0:00:40]}  Re5 {[%clk 0:00:17]} 82. Kc6 {[%clk 0:00:40]}  Re1 {[%clk 0:00:17]} 83. Kd6 {[%clk 0:00:40]}  Rd1+ {[%clk 0:00:17]} 84. Kc5 {[%clk 0:00:40]}  Rc1+ {[%clk 0:00:17]} 85. Kd4 {[%clk 0:00:41]}  Rd1+ {[%clk 0:00:17]} 86. Ke3 {[%clk 0:00:42]}  Re1+ {[%clk 0:00:18]} 87. Kf2 {[%clk 0:00:42]}  Ra1 {[%clk 0:00:19]} 88. Kf3 {[%clk 0:00:43]}  Ra3+ {[%clk 0:00:18]} 89. Ke4 {[%clk 0:00:43]}  Ra4+ {[%clk 0:00:19]} 90. Kd5 {[%clk 0:00:44]}  Ra5+ {[%clk 0:00:19]} 91. Kc4 {[%clk 0:00:44]}  Ra4+ {[%clk 0:00:20]} 92. Kb5 {[%clk 0:00:45]}  Ra1 {[%clk 0:00:20]} 93. Kb4 {[%clk 0:00:45]}  Rb1+ {[%clk 0:00:20]} 94. Kc3 {[%clk 0:00:45]}  Rc1+ {[%clk 0:00:21]} 95. Kd3 {[%clk 0:00:45]}  Rd1+ {[%clk 0:00:21]} 96. Ke3 {[%clk 0:00:46]}  Re1+ {[%clk 0:00:21]} 97. Kf3 {[%clk 0:00:46]}  Rf1+ {[%clk 0:00:22]} 98. Ke3 {[%clk 0:00:47]}  Re1+ {[%clk 0:00:22]} 1/2-1/2


[Site "https://www.chess.com"]

[Event "Titled Tuesday Blitz November 07 Late 2023"]
[White "TheAlienParty"]
[Black "Roberson, Peter T"]
[BlackFideId "412384"]
[WhiteElo "2353"]
[BlackElo "2584"]
[Result "0-1"]
[Round "4"]
[TimeControl "180+1"]
[Date "2023.11.07"]
[WhiteClock "0:00:10"]
[BlackClock "0:00:06"]
[Board "86"]

1. c4 {[%clk 0:02:51]}  b6 {[%clk 0:02:59]} 2. Nc3 {[%clk 0:02:49]}  Bb7 {[%clk 0:03:00]} 3. e4 {[%clk 0:02:49]}  e6 {[%clk 0:03:00]} 4. d4 {[%clk 0:02:48]}  Bb4 {[%clk 0:03:01]} 5. Bd3 {[%clk 0:02:46]}  f5 {[%clk 0:03:01]} 6. Qe2 {[%clk 0:02:44]}  Nf6 {[%clk 0:02:59]} 7. f3 {[%clk 0:02:43]}  Bxc3+ {[%clk 0:02:50]} 8. bxc3 {[%clk 0:02:43]}  fxe4 {[%clk 0:02:51]} 9. fxe4 {[%clk 0:02:42]}  Nxe4 {[%clk 0:02:51]} 10. Bxe4 {[%clk 0:02:39]}  Qh4+ {[%clk 0:02:51]} 11. Kf1 {[%clk 0:02:32]}  Qxe4 {[%clk 0:02:52]} 12. Qxe4 {[%clk 0:02:31]}  Bxe4 {[%clk 0:02:53]} 13. Nf3 {[%clk 0:02:30]}  O-O {[%clk 0:02:49]} 14. Ke2 {[%clk 0:02:22]}  Bxf3+ {[%clk 0:02:34]} 15. gxf3 {[%clk 0:02:21]}  Nc6 {[%clk 0:02:34]} 16. Rg1 {[%clk 0:02:20]}  Rf7 {[%clk 0:02:35]} 17. c5 {[%clk 0:02:19]}  Raf8 {[%clk 0:02:34]} 18. cxb6 {[%clk 0:02:18]}  axb6 {[%clk 0:02:33]} 19. Rg3 {[%clk 0:02:18]}  Ra8 {[%clk 0:02:33]} 20. a4 {[%clk 0:02:14]}  Rf5 {[%clk 0:02:33]} 21. Bh6 {[%clk 0:02:11]}  g6 {[%clk 0:02:33]} 22. h4 {[%clk 0:02:09]}  Rfa5 {[%clk 0:02:33]} 23. Bf4 {[%clk 0:02:08]}  d6 {[%clk 0:02:28]} 24. Rh1 {[%clk 0:02:06]}  Rxa4 {[%clk 0:02:23]} 25. h5 {[%clk 0:02:05]}  Ra2+ {[%clk 0:02:22]} 26. Kd3 {[%clk 0:02:04]}  Kg7 {[%clk 0:02:07]} 27. hxg6 {[%clk 0:01:57]}  hxg6 {[%clk 0:02:07]} 28. Bh6+ {[%clk 0:01:56]}  Kf7 {[%clk 0:02:06]} 29. Be3 {[%clk 0:01:45]}  Rg8 {[%clk 0:01:58]} 30. Rh7+ {[%clk 0:01:44]}  Rg7 {[%clk 0:01:57]} 31. Rh8 {[%clk 0:01:42]}  Ne7 {[%clk 0:01:42]} 32. Rd8 {[%clk 0:01:04]}  Nf5 {[%clk 0:01:34]} 33. Rh3 {[%clk 0:01:02]}  Nxe3 {[%clk 0:01:26]} 34. Kxe3 {[%clk 0:01:02]}  Ra5 {[%clk 0:01:09]} 35. Rhh8 {[%clk 0:00:54]}  g5 {[%clk 0:00:57]} 36. Rhf8+ {[%clk 0:00:39]}  Kg6 {[%clk 0:00:55]} 37. Rg8 {[%clk 0:00:39]}  Rf5 {[%clk 0:00:50]} 38. Rh8 {[%clk 0:00:29]}  Rgf7 {[%clk 0:00:46]} 39. Rhg8+ {[%clk 0:00:29]}  Kf6 {[%clk 0:00:46]} 40. Rc8 {[%clk 0:00:26]}  c5 {[%clk 0:00:40]} 41. Rc6 {[%clk 0:00:22]}  Ke7 {[%clk 0:00:25]} 42. Rc7+ {[%clk 0:00:22]}  Kf6 {[%clk 0:00:26]} 43. Rc6 {[%clk 0:00:22]}  cxd4+ {[%clk 0:00:26]} 44. cxd4 {[%clk 0:00:21]}  b5 {[%clk 0:00:23]} 45. Rb8 {[%clk 0:00:13]}  Kg7 {[%clk 0:00:11]} 46. Rxd6 {[%clk 0:00:13]}  Rxf3+ {[%clk 0:00:11]} 47. Ke2 {[%clk 0:00:10]}  Rf2+ {[%clk 0:00:06]} 48. Ke3 {[%clk 0:00:11]}  R7f3+ {[%clk 0:00:05]} 49. Ke4 {[%clk 0:00:11]}  Rf4+ {[%clk 0:00:06]} 50. Ke5 {[%clk 0:00:10]}  Re2# {[%clk 0:00:06]} 0-1


[Site "https://www.chess.com"]

[Event "Titled Tuesday Blitz November 07 Late 2023"]
[White "Toropov, Pavel"]
[Black "Ramadoss, Ashokkumar"]
[WhiteFideId "24129178"]
[BlackFideId "5040990"]
[WhiteElo "2565"]
[BlackElo "2329"]
[Result "1-0"]
[Round "4"]
[TimeControl "180+1"]
[Date "2023.11.07"]
[WhiteClock "0:01:03"]
[BlackClock "0:00:00"]
[Board "87"]

1. e4 {[%clk 0:02:50]}  e6 {[%clk 0:02:59]} 2. d4 {[%clk 0:02:49]}  d5 {[%clk 0:02:59]} 3. e5 {[%clk 0:02:49]}  c5 {[%clk 0:02:59]} 4. c3 {[%clk 0:02:50]}  Qb6 {[%clk 0:03:00]} 5. Nf3 {[%clk 0:02:49]}  Nc6 {[%clk 0:03:00]} 6. a3 {[%clk 0:02:49]}  Bd7 {[%clk 0:03:00]} 7. b4 {[%clk 0:02:47]}  cxd4 {[%clk 0:03:00]} 8. cxd4 {[%clk 0:02:47]}  Rc8 {[%clk 0:03:01]} 9. Bb2 {[%clk 0:02:47]}  Na5 {[%clk 0:03:01]} 10. Nbd2 {[%clk 0:02:47]}  Nc4 {[%clk 0:03:02]} 11. Nxc4 {[%clk 0:02:47]}  dxc4 {[%clk 0:03:03]} 12. d5 {[%clk 0:02:46]}  exd5 {[%clk 0:03:02]} 13. Qxd5 {[%clk 0:02:47]}  Be6 {[%clk 0:03:02]} 14. Qe4 {[%clk 0:02:46]}  Ne7 {[%clk 0:02:43]} 15. Bd4 {[%clk 0:02:40]}  Qa6 {[%clk 0:02:36]} 16. Be2 {[%clk 0:02:38]}  Bd5 {[%clk 0:02:19]} 17. Qg4 {[%clk 0:02:33]}  Be6 {[%clk 0:02:15]} 18. Qf4 {[%clk 0:02:24]}  Ng6 {[%clk 0:01:43]} 19. Qe4 {[%clk 0:02:21]}  b5 {[%clk 0:01:29]} 20. h4 {[%clk 0:02:19]}  Ne7 {[%clk 0:01:28]} 21. Ng5 {[%clk 0:02:17]}  Bd5 {[%clk 0:01:24]} 22. Qf4 {[%clk 0:02:16]}  Nc6 {[%clk 0:00:52]} 23. Bc3 {[%clk 0:01:57]}  h6 {[%clk 0:00:42]} 24. e6 {[%clk 0:01:53]}  fxe6 {[%clk 0:00:34]} 25. Bh5+ {[%clk 0:01:44]}  Kd8 {[%clk 0:00:32]} 26. Nf7+ {[%clk 0:01:43]}  Kd7 {[%clk 0:00:31]} 27. Nxh8 {[%clk 0:01:43]}  e5 {[%clk 0:00:24]} 28. Qf5+ {[%clk 0:01:40]}  Be6 {[%clk 0:00:23]} 29. Rd1+ {[%clk 0:01:40]}  Bd6 {[%clk 0:00:21]} 30. Qh7 {[%clk 0:01:34]}  Nd4 {[%clk 0:00:14]} 31. Nf7 {[%clk 0:01:29]}  Qxa3 {[%clk 0:00:12]} 32. Bxd4 {[%clk 0:01:27]}  exd4 {[%clk 0:00:12]} 33. Qxg7 {[%clk 0:01:28]}  Qxb4+ {[%clk 0:00:06]} 34. Kf1 {[%clk 0:01:28]}  d3 {[%clk 0:00:06]} 35. Ne5+ {[%clk 0:01:02]}  Kd8 {[%clk 0:00:00]} 36. Qf6+ {[%clk 0:01:03]} 1-0


[Site "https://www.chess.com"]

[Event "Titled Tuesday Blitz November 07 Late 2023"]
[White "Urbina Perez, Juan Antonio"]
[Black "Awoki, Daniel Teidi"]
[WhiteFideId "2217368"]
[BlackFideId "2100827"]
[WhiteElo "2514"]
[BlackElo "2299"]
[Result "0-1"]
[Round "4"]
[TimeControl "180+1"]
[Date "2023.11.07"]
[WhiteClock "0:00:14"]
[BlackClock "0:00:10"]
[Board "89"]

1. c4 {[%clk 0:03:00]}  e5 {[%clk 0:02:59]} 2. g3 {[%clk 0:03:00]}  Nf6 {[%clk 0:02:59]} 3. Bg2 {[%clk 0:03:01]}  d5 {[%clk 0:03:00]} 4. cxd5 {[%clk 0:03:00]}  Nxd5 {[%clk 0:03:01]} 5. Nc3 {[%clk 0:03:00]}  Nb6 {[%clk 0:03:01]} 6. Nf3 {[%clk 0:03:00]}  Nc6 {[%clk 0:03:02]} 7. O-O {[%clk 0:03:00]}  Be7 {[%clk 0:03:02]} 8. a3 {[%clk 0:02:59]}  O-O {[%clk 0:03:02]} 9. b4 {[%clk 0:02:58]}  Re8 {[%clk 0:03:03]} 10. Bb2 {[%clk 0:02:57]}  a5 {[%clk 0:03:02]} 11. b5 {[%clk 0:02:50]}  Nd4 {[%clk 0:03:02]} 12. d3 {[%clk 0:02:49]}  a4 {[%clk 0:03:00]} 13. Nxd4 {[%clk 0:02:46]}  exd4 {[%clk 0:02:59]} 14. Ne4 {[%clk 0:02:46]}  Ra5 {[%clk 0:02:56]} 15. Rc1 {[%clk 0:02:35]}  Rxb5 {[%clk 0:02:52]} 16. Ba1 {[%clk 0:02:35]}  Bxa3 {[%clk 0:02:51]} 17. Rb1 {[%clk 0:02:33]}  Rxb1 {[%clk 0:02:45]} 18. Qxb1 {[%clk 0:02:34]}  Bf8 {[%clk 0:02:27]} 19. Rc1 {[%clk 0:02:31]}  c6 {[%clk 0:02:13]} 20. Nc5 {[%clk 0:02:25]}  Bxc5 {[%clk 0:02:12]} 21. Rxc5 {[%clk 0:02:26]}  Rxe2 {[%clk 0:02:05]} 22. Bf3 {[%clk 0:02:25]}  Re7 {[%clk 0:01:51]} 23. Kg2 {[%clk 0:02:23]}  Be6 {[%clk 0:01:40]} 24. Qb4 {[%clk 0:02:20]}  Rd7 {[%clk 0:01:32]} 25. Ra5 {[%clk 0:02:06]}  Bd5 {[%clk 0:01:26]} 26. Bxd5 {[%clk 0:01:54]}  Rxd5 {[%clk 0:01:26]} 27. f3 {[%clk 0:01:35]}  Rxa5 {[%clk 0:00:59]} 28. Qxa5 {[%clk 0:01:36]}  h6 {[%clk 0:00:52]} 29. Qb4 {[%clk 0:01:32]}  Kh7 {[%clk 0:00:34]} 30. Bxd4 {[%clk 0:01:27]}  Nd5 {[%clk 0:00:32]} 31. Qxa4 {[%clk 0:01:27]}  b5 {[%clk 0:00:24]} 32. Qa1 {[%clk 0:01:27]}  f6 {[%clk 0:00:22]} 33. Bf2 {[%clk 0:01:26]}  Qd6 {[%clk 0:00:20]} 34. Qc1 {[%clk 0:01:25]}  b4 {[%clk 0:00:18]} 35. Bc5 {[%clk 0:01:24]}  Qe6 {[%clk 0:00:17]} 36. Qb2 {[%clk 0:01:13]}  b3 {[%clk 0:00:14]} 37. Kf2 {[%clk 0:01:06]}  Nc7 {[%clk 0:00:12]} 38. Be3 {[%clk 0:01:01]}  Qd5 {[%clk 0:00:12]} 39. d4 {[%clk 0:01:01]}  Nb5 {[%clk 0:00:11]} 40. Qb1+ {[%clk 0:01:00]}  Kh8 {[%clk 0:00:10]} 41. Qb2 {[%clk 0:00:45]}  Qc4 {[%clk 0:00:10]} 42. Ke1 {[%clk 0:00:35]}  Kg8 {[%clk 0:00:10]} 43. Kd2 {[%clk 0:00:27]}  Kf7 {[%clk 0:00:10]} 44. Qc1 {[%clk 0:00:25]}  Qxc1+ {[%clk 0:00:07]} 45. Kxc1 {[%clk 0:00:26]}  Nc3 {[%clk 0:00:05]} 46. Bd2 {[%clk 0:00:19]}  Na4 {[%clk 0:00:05]} 47. Bb4 {[%clk 0:00:15]}  h5 {[%clk 0:00:04]} 48. h4 {[%clk 0:00:14]}  g6 {[%clk 0:00:04]} 49. Kb1 {[%clk 0:00:13]}  Ke6 {[%clk 0:00:04]} 50. Ba5 {[%clk 0:00:13]}  Kd5 {[%clk 0:00:05]} 51. Bd8 {[%clk 0:00:14]}  f5 {[%clk 0:00:05]} 52. Bf6 {[%clk 0:00:13]}  Kc4 {[%clk 0:00:05]} 53. Kc1 {[%clk 0:00:10]}  Kd3 {[%clk 0:00:04]} 54. Kb1 {[%clk 0:00:10]}  Ke3 {[%clk 0:00:04]} 55. f4 {[%clk 0:00:09]}  Kf3 {[%clk 0:00:04]} 56. Be7 {[%clk 0:00:08]}  Kxg3 {[%clk 0:00:04]} 57. Bg5 {[%clk 0:00:09]}  Kf3 {[%clk 0:00:04]} 58. Kc1 {[%clk 0:00:10]}  Ke3 {[%clk 0:00:05]} 59. Kb1 {[%clk 0:00:09]}  Kxd4 {[%clk 0:00:05]} 60. Bf6+ {[%clk 0:00:09]}  Kd3 {[%clk 0:00:05]} 61. Be5 {[%clk 0:00:09]}  c5 {[%clk 0:00:05]} 62. Bf6 {[%clk 0:00:09]}  c4 {[%clk 0:00:06]} 63. Ka1 {[%clk 0:00:07]}  c3 {[%clk 0:00:05]} 64. Kb1 {[%clk 0:00:08]}  c2+ {[%clk 0:00:06]} 65. Kc1 {[%clk 0:00:06]}  b2+ {[%clk 0:00:05]} 66. Bxb2 {[%clk 0:00:07]}  Nxb2 {[%clk 0:00:06]} 67. Kxb2 {[%clk 0:00:07]}  Kd2 {[%clk 0:00:06]} 68. Kb3 {[%clk 0:00:08]}  c1=Q {[%clk 0:00:07]} 69. Kb4 {[%clk 0:00:09]}  Qc3+ {[%clk 0:00:07]} 70. Kb5 {[%clk 0:00:10]}  Kd3 {[%clk 0:00:07]} 71. Kb6 {[%clk 0:00:11]}  Qc4 {[%clk 0:00:07]} 72. Ka7 {[%clk 0:00:12]}  Qb5 {[%clk 0:00:07]} 73. Ka8 {[%clk 0:00:12]}  Kd4 {[%clk 0:00:08]} 74. Ka7 {[%clk 0:00:12]}  Kc5 {[%clk 0:00:08]} 75. Ka8 {[%clk 0:00:13]}  Kc6 {[%clk 0:00:09]} 76. Ka7 {[%clk 0:00:14]}  Qb7# {[%clk 0:00:10]} 0-1


[Site "https://www.chess.com"]

[Event "Titled Tuesday Blitz November 07 Late 2023"]
[White "Tifferet, Shaked"]
[Black "Bazzano, Sebastian"]
[WhiteFideId "2811529"]
[BlackFideId "104566"]
[WhiteElo "2511"]
[BlackElo "2255"]
[Result "1-0"]
[Round "4"]
[TimeControl "180+1"]
[Date "2023.11.07"]
[WhiteClock "0:00:52"]
[BlackClock "0:00:00"]
[Board "90"]

1. e4 {[%clk 0:03:00]}  e6 {[%clk 0:02:59]} 2. d4 {[%clk 0:03:00]}  d5 {[%clk 0:02:59]} 3. e5 {[%clk 0:02:59]}  c5 {[%clk 0:02:59]} 4. c3 {[%clk 0:02:56]}  Nc6 {[%clk 0:02:59]} 5. Nf3 {[%clk 0:02:53]}  Qb6 {[%clk 0:02:59]} 6. a3 {[%clk 0:02:48]}  c4 {[%clk 0:02:59]} 7. Nbd2 {[%clk 0:02:47]}  Na5 {[%clk 0:02:58]} 8. g3 {[%clk 0:02:41]}  Bd7 {[%clk 0:02:58]} 9. h4 {[%clk 0:02:42]}  Ne7 {[%clk 0:02:58]} 10. Bh3 {[%clk 0:02:41]}  Qc7 {[%clk 0:02:55]} 11. O-O {[%clk 0:02:37]}  Nc8 {[%clk 0:02:55]} 12. Ng5 {[%clk 0:02:29]}  Bc6 {[%clk 0:02:21]} 13. Qh5 {[%clk 0:02:26]}  g6 {[%clk 0:02:18]} 14. Qf3 {[%clk 0:02:26]}  Bg7 {[%clk 0:01:56]} 15. Bg4 {[%clk 0:02:09]}  h6 {[%clk 0:01:54]} 16. Nh3 {[%clk 0:02:09]}  Nb6 {[%clk 0:01:41]} 17. Nf4 {[%clk 0:02:06]}  Ba4 {[%clk 0:01:16]} 18. h5 {[%clk 0:01:58]}  Bc2 {[%clk 0:01:15]} 19. hxg6 {[%clk 0:01:56]}  Bxg6 {[%clk 0:01:06]} 20. Nxg6 {[%clk 0:01:55]}  fxg6 {[%clk 0:01:07]} 21. Bxe6 {[%clk 0:01:55]}  Rf8 {[%clk 0:00:32]} 22. Qg4 {[%clk 0:01:53]}  g5 {[%clk 0:00:31]} 23. Nf3 {[%clk 0:01:46]}  Nb3 {[%clk 0:00:25]} 24. Rb1 {[%clk 0:01:39]}  Nxc1 {[%clk 0:00:24]} 25. Rbxc1 {[%clk 0:01:36]}  Qe7 {[%clk 0:00:20]} 26. Nh2 {[%clk 0:01:21]}  Kd8 {[%clk 0:00:20]} 27. Bf5 {[%clk 0:01:11]}  Kc7 {[%clk 0:00:19]} 28. Bg6 {[%clk 0:01:09]}  Rad8 {[%clk 0:00:18]} 29. Qh5 {[%clk 0:01:07]}  Rh8 {[%clk 0:00:10]} 30. Rc2 {[%clk 0:01:07]}  Rdf8 {[%clk 0:00:10]} 31. f4 {[%clk 0:01:07]}  gxf4 {[%clk 0:00:09]} 32. Rxf4 {[%clk 0:01:05]}  Rxf4 {[%clk 0:00:07]} 33. gxf4 {[%clk 0:01:06]}  Rf8 {[%clk 0:00:07]} 34. f5 {[%clk 0:01:05]}  Qg5+ {[%clk 0:00:04]} 35. Qxg5 {[%clk 0:01:05]}  hxg5 {[%clk 0:00:05]} 36. Ng4 {[%clk 0:01:05]}  Rh8 {[%clk 0:00:04]} 37. f6 {[%clk 0:01:04]}  Bf8 {[%clk 0:00:04]} 38. Rh2 {[%clk 0:01:03]}  Rxh2 {[%clk 0:00:03]} 39. Kxh2 {[%clk 0:01:04]}  Kd7 {[%clk 0:00:03]} 40. Bf5+ {[%clk 0:01:00]}  Ke8 {[%clk 0:00:03]} 41. e6 {[%clk 0:01:00]}  Bd6+ {[%clk 0:00:02]} 42. Kh3 {[%clk 0:00:59]}  Na4 {[%clk 0:00:02]} 43. Ne5 {[%clk 0:00:52]}  Nxb2 {[%clk 0:00:00]} 44. f7+ {[%clk 0:00:52]} 1-0


[Site "https://www.chess.com"]

[Event "Titled Tuesday Blitz November 07 Late 2023"]
[White "JackRodgers"]
[Black "Sarkar, Justin"]
[BlackFideId "2010011"]
[WhiteElo "2504"]
[BlackElo "2242"]
[Result "1-0"]
[Round "4"]
[TimeControl "180+1"]
[Date "2023.11.07"]
[WhiteClock "0:01:18"]
[BlackClock "0:00:00"]
[Board "91"]

1. d4 {[%clk 0:03:00]}  Nf6 {[%clk 0:02:51]} 2. Bg5 {[%clk 0:02:59]}  d5 {[%clk 0:02:45]} 3. Bxf6 {[%clk 0:02:59]}  exf6 {[%clk 0:02:44]} 4. e3 {[%clk 0:02:59]}  Be6 {[%clk 0:02:36]} 5. g3 {[%clk 0:02:59]}  c6 {[%clk 0:02:28]} 6. Bg2 {[%clk 0:02:59]}  Nd7 {[%clk 0:02:27]} 7. Ne2 {[%clk 0:02:59]}  Bd6 {[%clk 0:02:15]} 8. Nd2 {[%clk 0:02:52]}  f5 {[%clk 0:02:09]} 9. b3 {[%clk 0:02:51]}  Nf6 {[%clk 0:02:03]} 10. c4 {[%clk 0:02:51]}  Ne4 {[%clk 0:02:00]} 11. cxd5 {[%clk 0:02:47]}  cxd5 {[%clk 0:01:54]} 12. O-O {[%clk 0:02:44]}  h5 {[%clk 0:01:42]} 13. h4 {[%clk 0:02:42]}  g5 {[%clk 0:01:21]} 14. hxg5 {[%clk 0:02:27]}  h4 {[%clk 0:01:06]} 15. f4 {[%clk 0:02:19]}  hxg3 {[%clk 0:00:50]} 16. Nxe4 {[%clk 0:02:14]}  fxe4 {[%clk 0:00:49]} 17. Nxg3 {[%clk 0:02:15]}  f6 {[%clk 0:00:33]} 18. g6 {[%clk 0:02:07]}  Qd7 {[%clk 0:00:12]} 19. Kf2 {[%clk 0:02:07]}  f5 {[%clk 0:00:06]} 20. Rh1 {[%clk 0:01:56]}  O-O-O {[%clk 0:00:06]} 21. Qc2+ {[%clk 0:01:36]}  Kb8 {[%clk 0:00:06]} 22. Rxh8 {[%clk 0:01:36]}  Rxh8 {[%clk 0:00:06]} 23. Rh1 {[%clk 0:01:37]}  Rxh1 {[%clk 0:00:05]} 24. Bxh1 {[%clk 0:01:36]}  Qg7 {[%clk 0:00:05]} 25. Qe2 {[%clk 0:01:31]}  Qxg6 {[%clk 0:00:04]} 26. Bg2 {[%clk 0:01:32]}  a6 {[%clk 0:00:04]} 27. Bh3 {[%clk 0:01:30]}  Be7 {[%clk 0:00:04]} 28. Qh5 {[%clk 0:01:29]}  Qxh5 {[%clk 0:00:03]} 29. Nxh5 {[%clk 0:01:30]}  Bh4+ {[%clk 0:00:02]} 30. Ke2 {[%clk 0:01:28]}  Bd7 {[%clk 0:00:02]} 31. Ng7 {[%clk 0:01:26]}  Bf6 {[%clk 0:00:00]} 32. Nxf5 {[%clk 0:01:18]} 1-0


[Site "https://www.chess.com"]